[Event "*** Titled Tuesday Blitz"]
[Site "Chess.com"]
[Date "2018.01.02"]
[Round "10"]
[White "Hanging_pointer"]
[Black "Superfelix"]
[Result "1/2-1/2"]
[WhiteElo "2262"]
[BlackElo "2347"]
[TimeControl "180+2"]
[EndTime "15:13:10 PST"]
[Termination "Game drawn by agreement"]

1. e4 {[%clk 0:03:01.8]} 1... c6 {[%clk 0:02:59.4]} 2. Nf3 {[%clk 0:03:02.6]}
2... g6 {[%clk 0:03:00.5]} 3. Nc3 {[%clk 0:03:04.5]} 3... d5 {[%clk 0:03:01]} 4.
d4 {[%clk 0:03:01.7]} 4... dxe4 {[%clk 0:03:01.6]} 5. Nxe4 {[%clk 0:03:03.6]}
5... Nf6 {[%clk 0:03:02.7]} 6. Nxf6+ {[%clk 0:03:03.7]} 6... exf6 {[%clk
0:03:04.6]} 7. Bc4 {[%clk 0:02:57.5]} 7... Bg7 {[%clk 0:03:05.9]} 8. O-O {[%clk
0:02:58.3]} 8... O-O {[%clk 0:03:06]} 9. c3 {[%clk 0:02:59.6]} 9... a5 {[%clk
0:03:07.4]} 10. Re1 {[%clk 0:02:58.4]} 10... Na6 {[%clk 0:03:08.8]} 11. h3
{[%clk 0:02:56.7]} 11... Nc7 {[%clk 0:03:10.3]} 12. a4 {[%clk 0:02:45.5]} 12...
Nd5 {[%clk 0:03:11.3]} 13. Qb3 {[%clk 0:02:39.1]} 13... Nb6 {[%clk 0:03:05.6]}
14. Bd3 {[%clk 0:02:34.4]} 14... Be6 {[%clk 0:03:06.2]} 15. Qc2 {[%clk
0:02:35.6]} 15... Nd5 {[%clk 0:03:05.6]} 16. Nd2 {[%clk 0:02:15.1]} 16... Re8
{[%clk 0:02:56.3]} 17. Ne4 {[%clk 0:02:15.6]} 17... b6 {[%clk 0:02:56.4]} 18. b3
{[%clk 0:02:08.8]} 18... Qc7 {[%clk 0:02:55.1]} 19. Ba3 {[%clk 0:02:03.4]} 19...
Rad8 {[%clk 0:02:56.4]} 20. Rad1 {[%clk 0:02:03.8]} 20... Nf4 {[%clk 0:02:54.8]}
21. Ng3 {[%clk 0:01:25.7]} 21... Nxd3 {[%clk 0:02:52.7]} 22. Rxd3 {[%clk
0:01:27.5]} 22... h5 {[%clk 0:02:46.4]} 23. Rde3 {[%clk 0:01:26.8]} 23... Qd7
{[%clk 0:02:37.6]} 24. b4 {[%clk 0:00:52]} 24... axb4 {[%clk 0:02:23.4]} 25.
Bxb4 {[%clk 0:00:53.8]} 25... f5 {[%clk 0:02:18.7]} 26. Nf1 {[%clk 0:00:42.1]}
26... Bd5 {[%clk 0:02:16.3]} 27. a5 {[%clk 0:00:41.1]} 27... bxa5 {[%clk
0:02:09.5]} 28. Bxa5 {[%clk 0:00:42.8]} 28... Ra8 {[%clk 0:02:09.7]} 29. Rxe8+
{[%clk 0:00:36.2]} 29... Rxe8 {[%clk 0:02:10]} 30. Qd2 {[%clk 0:00:32.8]} 30...
Rxe1 {[%clk 0:02:02.9]} 31. Qxe1 {[%clk 0:00:34.6]} 31... f4 {[%clk 0:02:02]}
32. Nd2 {[%clk 0:00:28.1]} 32... g5 {[%clk 0:02:02.7]} 33. Bb4 {[%clk
0:00:27.4]} 33... g4 {[%clk 0:02:01.5]} 34. hxg4 {[%clk 0:00:24.3]} 34... hxg4
{[%clk 0:02:03.4]} 35. Qe7 {[%clk 0:00:24.3]} 35... Qxe7 {[%clk 0:01:52.7]} 36.
Bxe7 {[%clk 0:00:26.1]} 36... Kh7 {[%clk 0:01:53.6]} 37. Bd6 {[%clk 0:00:24.5]}
37... Bh6 {[%clk 0:01:50.2]} 38. f3 {[%clk 0:00:22.2]} 38... f5 {[%clk
0:01:48.8]} 39. Kf2 {[%clk 0:00:13.7]} 39... Kg6 {[%clk 0:01:48.3]} 40. Ke2
{[%clk 0:00:14.3]} 40... Kf6 {[%clk 0:01:48.2]} 41. Kd3 {[%clk 0:00:14]} 41...
Ba2 {[%clk 0:01:47]} 42. c4 {[%clk 0:00:13.2]} 42... Ke6 {[%clk 0:01:48.2]} 43.
Bb8 {[%clk 0:00:13.4]} 43... gxf3 {[%clk 0:01:42]} 44. gxf3 {[%clk 0:00:13.8]}
44... Bg5 {[%clk 0:01:37.3]} 45. Kc3 {[%clk 0:00:14]} 45... Bh4 {[%clk
0:01:34.1]} 46. Bxf4 {[%clk 0:00:09.5]} 46... Be1 {[%clk 0:01:34.8]} 47. Kb2
{[%clk 0:00:02.3]} 47... Bxd2 {[%clk 0:01:34.6]} 48. Bxd2 {[%clk 0:00:04]} 48...
Bxc4 {[%clk 0:01:35.5]} 49. Kc3 {[%clk 0:00:05.1]} 49... Bd5 {[%clk 0:01:36.8]}
50. f4 {[%clk 0:00:05.8]} 50... Kf6 {[%clk 0:01:38.2]} 51. Kb4 {[%clk 0:00:06]}
51... Kg6 {[%clk 0:01:40.1]} 52. Kc5 {[%clk 0:00:07]} 52... Kh5 {[%clk 0:01:42]}
53. Bc1 {[%clk 0:00:08.7]} 53... Kg4 {[%clk 0:01:43.9]} 54. Bd2 {[%clk
0:00:10.3]} 54... Kf3 {[%clk 0:01:45.8]} 55. Bc1 {[%clk 0:00:10.4]} 55... Ke2
{[%clk 0:01:47.7]} 56. Kb4 {[%clk 0:00:10.4]} 56... Kd3 {[%clk 0:01:48.2]} 57.
Kc5 {[%clk 0:00:11.1]} 57... Kc2 {[%clk 0:01:49.7]} 58. Be3 {[%clk 0:00:11.9]}
58... Kd3 {[%clk 0:01:50.7]} 59. Bf2 {[%clk 0:00:11.7]} 59... Ke2 {[%clk
0:01:52.6]} 60. Bh4 {[%clk 0:00:12.6]} 60... Kf3 {[%clk 0:01:54.5]} 61. Bg5
{[%clk 0:00:14.4]} 61... Kg4 {[%clk 0:01:55.6]} 62. Bh6 {[%clk 0:00:15.5]} 62...
Kh5 {[%clk 0:01:57]} 63. Bg5 {[%clk 0:00:17.3]} 63... Kg6 {[%clk 0:01:58.4]} 64.
Bd8 {[%clk 0:00:17.4]} 64... Kh5 {[%clk 0:02:00.3]} 65. Bc7 {[%clk 0:00:19.2]}
65... Kg4 {[%clk 0:02:01.8]} 66. Be5 {[%clk 0:00:21]} 66... Kf3 {[%clk
0:02:03.6]} 67. Bd6 {[%clk 0:00:22.8]} 67... Ke4 {[%clk 0:02:05.5]} 68. Be5
{[%clk 0:00:24.6]} 68... Kd3 {[%clk 0:02:07.4]} 1/2-1/2

[Event "*** Titled Tuesday Blitz"]
[Site "Chess.com"]
[Date "2018.01.02"]
[Round "10"]
[White "gkchesstiger"]
[Black "Muracle"]
[Result "1-0"]
[WhiteElo "2666"]
[BlackElo "2529"]
[TimeControl "180+2"]
[EndTime "15:13:24 PST"]
[Termination "gkchesstiger won by checkmate"]

1. d4 {[%clk 0:03:01.9]} 1... g6 {[%clk 0:02:59.1]} 2. Nf3 {[%clk 0:03:03.1]}
2... Bg7 {[%clk 0:02:59.9]} 3. c3 {[%clk 0:03:04.7]} 3... d6 {[%clk 0:03:00.5]}
4. e4 {[%clk 0:03:05.8]} 4... Nd7 {[%clk 0:03:01.3]} 5. h3 {[%clk 0:03:05.9]}
5... e5 {[%clk 0:02:57.7]} 6. Bd3 {[%clk 0:03:04.7]} 6... Ne7 {[%clk 0:02:57.7]}
7. O-O {[%clk 0:03:05.3]} 7... O-O {[%clk 0:02:58.7]} 8. Re1 {[%clk 0:03:06.5]}
8... c5 {[%clk 0:02:57.1]} 9. dxe5 {[%clk 0:03:05.7]} 9... Nxe5 {[%clk
0:02:54.2]} 10. Nxe5 {[%clk 0:03:05.9]} 10... dxe5 {[%clk 0:02:55.1]} 11. Bc4
{[%clk 0:03:05.1]} 11... Qc7 {[%clk 0:02:52.2]} 12. Nd2 {[%clk 0:03:02.2]} 12...
a6 {[%clk 0:02:46.3]} 13. a4 {[%clk 0:03:02.1]} 13... Rb8 {[%clk 0:02:46.9]} 14.
a5 {[%clk 0:03:02.4]} 14... Nc6 {[%clk 0:02:45.7]} 15. Nb3 {[%clk 0:03:03.1]}
15... Rd8 {[%clk 0:02:10.1]} 16. Qe2 {[%clk 0:03:02]} 16... Bf8 {[%clk 0:01:47]}
17. Bg5 {[%clk 0:03:01]} 17... Be7 {[%clk 0:01:48.2]} 18. Be3 {[%clk 0:02:58.8]}
18... Na7 {[%clk 0:01:33.4]} 19. Qf3 {[%clk 0:02:34.6]} 19... Bf8 {[%clk
0:01:25.6]} 20. Bg5 {[%clk 0:02:32.6]} 20... Re8 {[%clk 0:01:26.6]} 21. Red1
{[%clk 0:02:32.5]} 21... Be6 {[%clk 0:01:26.2]} 22. Bxe6 {[%clk 0:02:26.6]}
22... Rxe6 {[%clk 0:01:28.1]} 23. Rd5 {[%clk 0:02:27.7]} 23... c4 {[%clk
0:01:25.3]} 24. Nd2 {[%clk 0:02:28]} 24... b6 {[%clk 0:01:15.2]} 25. axb6 {[%clk
0:02:27.5]} 25... Rexb6 {[%clk 0:01:16.5]} 26. Be3 {[%clk 0:01:59.3]} 26... Rxb2
{[%clk 0:01:12.7]} 27. Rxa6 {[%clk 0:02:00]} 27... Nb5 {[%clk 0:01:09]} 28. Bg5
{[%clk 0:01:42.8]} 28... Rc2 {[%clk 0:01:09.1]} 29. Bf6 {[%clk 0:01:37.1]} 29...
Qb7 {[%clk 0:00:34.4]} 30. Bxe5 {[%clk 0:01:30.8]} 30... Qxa6 {[%clk 0:00:33.6]}
31. Bxb8 {[%clk 0:01:28.5]} 31... Nxc3 {[%clk 0:00:31.8]} 32. Rd8 {[%clk
0:01:18]} 32... Qb6 {[%clk 0:00:23.3]} 33. Rxf8+ {[%clk 0:00:28.7]} 33... Kxf8
{[%clk 0:00:24]} 34. Bf4 {[%clk 0:00:27.6]} 34... Qe6 {[%clk 0:00:19.1]} 35. Kh2
{[%clk 0:00:25.4]} 35... Nb5 {[%clk 0:00:17.7]} 36. Qe3 {[%clk 0:00:22.9]} 36...
Qd7 {[%clk 0:00:13.4]} 37. Qc5+ {[%clk 0:00:23.1]} 37... Kg8 {[%clk 0:00:09.9]}
38. Nf3 {[%clk 0:00:19.8]} 38... h6 {[%clk 0:00:07.4]} 39. Ne5 {[%clk 0:00:20]}
39... Qe8 {[%clk 0:00:06.3]} 40. Ng4 {[%clk 0:00:21.2]} 40... Kg7 {[%clk
0:00:05.1]} 41. Be5+ {[%clk 0:00:21.3]} 41... f6 {[%clk 0:00:05.4]} 42. Bxf6+
{[%clk 0:00:22.3]} 42... Kh7 {[%clk 0:00:06]} 43. Be5 {[%clk 0:00:22.3]} 43...
Qe6 {[%clk 0:00:05.4]} 44. Qxb5 {[%clk 0:00:22.4]} 44... h5 {[%clk 0:00:06.6]}
45. Qb7+ {[%clk 0:00:23.1]} 45... Kg8 {[%clk 0:00:07.3]} 46. Qg7# {[%clk
0:00:24]} 1-0

[Event "*** Titled Tuesday Blitz"]
[Site "Chess.com"]
[Date "2018.01.02"]
[Round "10"]
[White "GM_dmitrij"]
[Black "EndgameGrinder"]
[Result "0-1"]
[WhiteElo "2608"]
[BlackElo "2488"]
[TimeControl "180+2"]
[EndTime "15:13:24 PST"]
[Termination "EndgameGrinder won by checkmate"]

1. e4 {[%clk 0:03:01.7]} 1... c5 {[%clk 0:03:00.6]} 2. Nf3 {[%clk 0:03:02.7]}
2... e6 {[%clk 0:03:01.6]} 3. d4 {[%clk 0:03:03.4]} 3... cxd4 {[%clk 0:03:02.9]}
4. Nxd4 {[%clk 0:03:05.3]} 4... Nc6 {[%clk 0:03:04.1]} 5. Nc3 {[%clk 0:03:04.4]}
5... Qc7 {[%clk 0:03:05.2]} 6. Be3 {[%clk 0:03:05]} 6... a6 {[%clk 0:03:06.5]}
7. Qf3 {[%clk 0:03:05.8]} 7... d6 {[%clk 0:03:04.6]} 8. O-O-O {[%clk 0:03:06.5]}
8... Bd7 {[%clk 0:03:05.5]} 9. g4 {[%clk 0:03:03.3]} 9... Rc8 {[%clk 0:03:05.6]}
10. Kb1 {[%clk 0:03:02.7]} 10... b5 {[%clk 0:03:00.5]} 11. Nxc6 {[%clk 0:03:01]}
11... Bxc6 {[%clk 0:03:01.1]} 12. Bd3 {[%clk 0:02:56.8]} 12... Nf6 {[%clk
0:02:58.1]} 13. h4 {[%clk 0:02:56.1]} 13... h5 {[%clk 0:02:56.8]} 14. gxh5
{[%clk 0:02:53.3]} 14... Rxh5 {[%clk 0:02:53.1]} 15. Bg5 {[%clk 0:02:54]} 15...
Rh8 {[%clk 0:02:41.6]} 16. Bxf6 {[%clk 0:02:53.1]} 16... gxf6 {[%clk 0:02:42.9]}
17. Qxf6 {[%clk 0:02:55]} 17... Rh6 {[%clk 0:02:35.5]} 18. Qf4 {[%clk
0:02:51.1]} 18... b4 {[%clk 0:02:11.9]} 19. Ne2 {[%clk 0:02:49.7]} 19... Bb5
{[%clk 0:02:11]} 20. Rc1 {[%clk 0:02:46]} 20... Bg7 {[%clk 0:02:01.6]} 21. Rhg1
{[%clk 0:02:40.9]} 21... Rf6 {[%clk 0:02:02.9]} 22. Bxb5+ {[%clk 0:02:26.5]}
22... axb5 {[%clk 0:02:03.3]} 23. Qg5 {[%clk 0:02:28.1]} 23... Rg6 {[%clk
0:02:03.3]} 24. Qxb5+ {[%clk 0:02:28.7]} 24... Ke7 {[%clk 0:02:00]} 25. Rxg6
{[%clk 0:02:28]} 25... fxg6 {[%clk 0:02:01.9]} 26. Nf4 {[%clk 0:02:23.1]} 26...
Bh6 {[%clk 0:01:35.8]} 27. Nxg6+ {[%clk 0:01:52.7]} 27... Kf7 {[%clk 0:01:36.8]}
28. Qh5 {[%clk 0:01:18]} 28... Bxc1 {[%clk 0:01:37.4]} 29. Nf4+ {[%clk
0:01:13.6]} 29... Kg8 {[%clk 0:01:07.4]} 30. Qg6+ {[%clk 0:01:13.6]} 30... Kh8
{[%clk 0:01:06.1]} 31. Qh5+ {[%clk 0:01:14.2]} 31... Kg8 {[%clk 0:00:38.9]} 32.
Qg5+ {[%clk 0:01:13.1]} 32... Kh7 {[%clk 0:00:33.5]} 33. Qg6+ {[%clk 0:01:12]}
33... Kh8 {[%clk 0:00:33.6]} 34. Qf6+ {[%clk 0:01:13.2]} 34... Kh7 {[%clk
0:00:32.2]} 35. Qg6+ {[%clk 0:00:44.4]} 35... Kh8 {[%clk 0:00:32.4]} 36. Qh6+
{[%clk 0:00:36.6]} 36... Kg8 {[%clk 0:00:32.9]} 37. Qxe6+ {[%clk 0:00:37.3]}
37... Kh7 {[%clk 0:00:14.4]} 38. Qf5+ {[%clk 0:00:37.9]} 38... Kg8 {[%clk
0:00:15.5]} 39. Qg5+ {[%clk 0:00:34.9]} 39... Kh7 {[%clk 0:00:15.9]} 40. Qg6+
{[%clk 0:00:32.9]} 40... Kh8 {[%clk 0:00:16.6]} 41. Qf6+ {[%clk 0:00:34.2]}
41... Kg8 {[%clk 0:00:11.8]} 42. Ne6 {[%clk 0:00:18.9]} 42... Qxc2+ {[%clk
0:00:11.4]} 43. Ka1 {[%clk 0:00:19.3]} 43... Bxb2+ {[%clk 0:00:12.2]} 44. Qxb2
{[%clk 0:00:20.2]} 44... Qd1+ {[%clk 0:00:13.2]} 45. Qb1 {[%clk 0:00:21.5]}
45... Rc1 {[%clk 0:00:14.6]} 46. Qxc1 {[%clk 0:00:20.7]} 46... Qxc1# {[%clk
0:00:16.5]} 0-1

[Event "*** Titled Tuesday Blitz"]
[Site "Chess.com"]
[Date "2018.01.02"]
[Round "10"]
[White "Andrejs_Sokolov"]
[Black "comedy_of_errors"]
[Result "1-0"]
[WhiteElo "2627"]
[BlackElo "2589"]
[TimeControl "180+2"]
[EndTime "15:13:38 PST"]
[Termination "Andrejs_Sokolov won by resignation"]

1. d4 {[%clk 0:03:00.1]} 1... Nf6 {[%clk 0:03:00.8]} 2. Nf3 {[%clk 0:03:00.8]}
2... g6 {[%clk 0:03:02.1]} 3. g3 {[%clk 0:03:02.2]} 3... Bg7 {[%clk 0:03:03.4]}
4. Bg2 {[%clk 0:03:03.7]} 4... O-O {[%clk 0:03:03]} 5. O-O {[%clk 0:03:05.1]}
5... d6 {[%clk 0:03:04.4]} 6. Re1 {[%clk 0:03:05.3]} 6... Nc6 {[%clk 0:02:57.8]}
7. e4 {[%clk 0:03:05.7]} 7... e5 {[%clk 0:02:58.7]} 8. c3 {[%clk 0:03:03.4]}
8... Bd7 {[%clk 0:02:57.2]} 9. Nbd2 {[%clk 0:02:52.9]} 9... Re8 {[%clk
0:02:53.6]} 10. d5 {[%clk 0:02:52.8]} 10... Ne7 {[%clk 0:02:54]} 11. a4 {[%clk
0:02:51.2]} 11... a5 {[%clk 0:02:54.7]} 12. Nc4 {[%clk 0:02:50.5]} 12... Rf8
{[%clk 0:02:51]} 13. b4 {[%clk 0:02:47.4]} 13... axb4 {[%clk 0:02:50.8]} 14.
cxb4 {[%clk 0:02:48.3]} 14... b5 {[%clk 0:02:49.3]} 15. Na5 {[%clk 0:02:45.5]}
15... bxa4 {[%clk 0:02:49.1]} 16. Qd3 {[%clk 0:02:41.5]} 16... c6 {[%clk
0:02:45.6]} 17. dxc6 {[%clk 0:02:37.8]} 17... Nxc6 {[%clk 0:02:45]} 18. Bd2
{[%clk 0:02:28.8]} 18... Nxa5 {[%clk 0:02:30.5]} 19. bxa5 {[%clk 0:02:29.2]}
19... Bc6 {[%clk 0:02:28]} 20. Bb4 {[%clk 0:02:25.1]} 20... Qd7 {[%clk
0:02:06.8]} 21. Qxd6 {[%clk 0:02:16.3]} 21... Qxd6 {[%clk 0:02:03.4]} 22. Bxd6
{[%clk 0:02:16.7]} 22... Rfd8 {[%clk 0:02:00.4]} 23. Bxe5 {[%clk 0:02:08.2]}
23... Re8 {[%clk 0:01:40]} 24. Nd4 {[%clk 0:01:23.3]} 24... Bxe4 {[%clk
0:00:52.3]} 25. Bxf6 {[%clk 0:01:09.1]} 25... Bxf6 {[%clk 0:00:44.3]} 26. Rxe4
{[%clk 0:01:09.1]} 26... Rxe4 {[%clk 0:00:40.4]} 27. Bxe4 {[%clk 0:01:05.1]}
27... Re8 {[%clk 0:00:33.6]} 28. Bc6 {[%clk 0:00:56.5]} 28... Bxd4 {[%clk
0:00:32.6]} 29. Rxa4 {[%clk 0:00:53.8]} 29... Re1+ {[%clk 0:00:32.7]} 30. Kg2
{[%clk 0:00:53.2]} 30... Ba7 {[%clk 0:00:34.6]} 31. a6 {[%clk 0:00:45.5]} 31...
Re2 {[%clk 0:00:34.1]} 32. Rf4 {[%clk 0:00:46]} 32... Kg7 {[%clk 0:00:32]} 33.
Kf1 {[%clk 0:00:42.9]} 33... Ra2 {[%clk 0:00:31.7]} 34. Rxf7+ {[%clk 0:00:41.3]}
34... Kxf7 {[%clk 0:00:30.6]} 35. Bd5+ {[%clk 0:00:42.2]} 35... Kf6 {[%clk
0:00:31.2]} 36. Bxa2 {[%clk 0:00:42.7]} 36... g5 {[%clk 0:00:31.2]} 37. Ke2
{[%clk 0:00:41.8]} 37... Ke5 {[%clk 0:00:30.5]} 38. Kf3 {[%clk 0:00:33.8]} 38...
h5 {[%clk 0:00:30.1]} 39. h4 {[%clk 0:00:30.7]} 39... gxh4 {[%clk 0:00:27.8]}
40. gxh4 {[%clk 0:00:31.2]} 40... Kf5 {[%clk 0:00:29.4]} 41. Bf7 {[%clk
0:00:28.7]} 41... Kf6 {[%clk 0:00:25]} 42. Bxh5 {[%clk 0:00:29.2]} 42... Kf5
{[%clk 0:00:26.9]} 43. Be8 {[%clk 0:00:28.9]} 43... Kf6 {[%clk 0:00:27.5]} 44.
Kg3 {[%clk 0:00:28]} 44... Bd4 {[%clk 0:00:27.8]} 45. f4 {[%clk 0:00:27.4]}
45... Kf5 {[%clk 0:00:29.4]} 46. Bd7+ {[%clk 0:00:27.1]} 46... Kg6 {[%clk
0:00:30.6]} 47. Kg4 {[%clk 0:00:28]} 47... Kf6 {[%clk 0:00:31.1]} 48. Bb5 {[%clk
0:00:27.8]} 48... Kg6 {[%clk 0:00:32.3]} 49. Bd3+ {[%clk 0:00:28.4]} 49... Kf6
{[%clk 0:00:33.8]} 50. h5 {[%clk 0:00:29.3]} 50... Kg7 {[%clk 0:00:34.9]} 51.
Kg5 {[%clk 0:00:28.5]} 51... Bf6+ {[%clk 0:00:36.2]} 52. Kf5 {[%clk 0:00:29]}
52... Bd4 {[%clk 0:00:38.1]} 53. Ke4 {[%clk 0:00:27.8]} 53... Ba7 {[%clk
0:00:39.1]} 54. Kd5 {[%clk 0:00:28.8]} 54... Kh6 {[%clk 0:00:37.9]} 55. Be2
{[%clk 0:00:29.2]} 55... Be3 {[%clk 0:00:37.7]} 56. Kc6 {[%clk 0:00:29.1]} 1-0

[Event "*** Titled Tuesday Blitz"]
[Site "Chess.com"]
[Date "2018.01.02"]
[Round "10"]
[White "Abrito99"]
[Black "ViktorMatviishen"]
[Result "0-1"]
[WhiteElo "2389"]
[BlackElo "2328"]
[TimeControl "180+2"]
[EndTime "15:13:48 PST"]
[Termination "ViktorMatviishen won by resignation"]

1. e4 {[%clk 0:03:01.9]} 1... c5 {[%clk 0:02:46.2]} 2. d4 {[%clk 0:03:02.3]}
2... cxd4 {[%clk 0:02:46.9]} 3. c3 {[%clk 0:03:03.9]} 3... d3 {[%clk 0:02:47.4]}
4. Bxd3 {[%clk 0:03:04.4]} 4... Nc6 {[%clk 0:02:49.3]} 5. c4 {[%clk 0:03:05.9]}
5... g6 {[%clk 0:02:49.7]} 6. Nf3 {[%clk 0:03:07.4]} 6... Bg7 {[%clk 0:02:51.1]}
7. O-O {[%clk 0:03:07.1]} 7... d6 {[%clk 0:02:52.4]} 8. h3 {[%clk 0:03:08.6]}
8... Nf6 {[%clk 0:02:53.2]} 9. Nc3 {[%clk 0:03:10.2]} 9... O-O {[%clk
0:02:53.2]} 10. Be3 {[%clk 0:03:11.7]} 10... Nd7 {[%clk 0:02:51.7]} 11. Rc1
{[%clk 0:03:13.2]} 11... a5 {[%clk 0:02:52.2]} 12. Bb1 {[%clk 0:03:06.9]} 12...
Nc5 {[%clk 0:02:48.3]} 13. Qe2 {[%clk 0:03:01.3]} 13... a4 {[%clk 0:02:48.4]}
14. Rfd1 {[%clk 0:02:58.9]} 14... Qa5 {[%clk 0:02:48.8]} 15. Nd5 {[%clk
0:02:49]} 15... Rb8 {[%clk 0:02:00.7]} 16. Nd4 {[%clk 0:02:18]} 16... Re8 {[%clk
0:01:21.2]} 17. Nb5 {[%clk 0:02:17.7]} 17... Be6 {[%clk 0:01:16.7]} 18. f4
{[%clk 0:01:57.8]} 18... Bxd5 {[%clk 0:01:13.6]} 19. exd5 {[%clk 0:01:42.1]}
19... Na7 {[%clk 0:01:13.4]} 20. Nd4 {[%clk 0:01:33]} 20... e5 {[%clk
0:01:02.2]} 21. dxe6 {[%clk 0:01:32.3]} 21... Nxe6 {[%clk 0:01:00.4]} 22. Nxe6
{[%clk 0:01:24.6]} 22... Rxe6 {[%clk 0:01:01.4]} 23. f5 {[%clk 0:01:22]} 23...
gxf5 {[%clk 0:00:57.7]} 24. Qf2 {[%clk 0:01:21.5]} 24... Rbe8 {[%clk 0:00:41.7]}
25. Bb6 {[%clk 0:00:47.4]} 25... Qb4 {[%clk 0:00:31.4]} 26. Bxa7 {[%clk
0:00:47.2]} 26... Re2 {[%clk 0:00:32]} 27. Qxf5 {[%clk 0:00:45.9]} 27... Qxb2
{[%clk 0:00:21.4]} 28. Bf2 {[%clk 0:00:33.7]} 28... R8e6 {[%clk 0:00:19.1]} 29.
Qxh7+ {[%clk 0:00:26.5]} 29... Kf8 {[%clk 0:00:19.6]} 30. Qh4 {[%clk 0:00:28.1]}
30... Rf6 {[%clk 0:00:18.9]} 31. Bg3 {[%clk 0:00:13.8]} 31... Rxg2+ {[%clk
0:00:19.2]} 32. Kh1 {[%clk 0:00:15.4]} 32... Qe2 {[%clk 0:00:14]} 33. Re1 {[%clk
0:00:12.7]} 33... Qf3 {[%clk 0:00:11.5]} 34. Be4 {[%clk 0:00:05.7]} 34... Qxg3
{[%clk 0:00:10.4]} 35. Qxg3 {[%clk 0:00:04.7]} 35... Rxg3 {[%clk 0:00:12]} 36.
Bxb7 {[%clk 0:00:03.5]} 36... Rxh3+ {[%clk 0:00:13]} 37. Kg2 {[%clk 0:00:05.1]}
37... Ra3 {[%clk 0:00:14.5]} 38. Bc6 {[%clk 0:00:06.4]} 38... Rxa2+ {[%clk
0:00:15.7]} 39. Kg3 {[%clk 0:00:07.8]} 39... Rg6+ {[%clk 0:00:16.9]} 40. Kf4
{[%clk 0:00:07.7]} 40... Be5+ {[%clk 0:00:18.4]} 41. Ke4 {[%clk 0:00:09.3]}
41... Rg4+ {[%clk 0:00:19.3]} 42. Kf3 {[%clk 0:00:08.7]} 42... Rg3+ {[%clk
0:00:19.6]} 43. Ke4 {[%clk 0:00:09.7]} 43... f5+ {[%clk 0:00:17.7]} 44. Kd5
{[%clk 0:00:10.4]} 44... Rd2+ {[%clk 0:00:18.7]} 45. Ke6 {[%clk 0:00:10.9]}
45... Rg6+ {[%clk 0:00:19.8]} 46. Kd7 {[%clk 0:00:10.8]} 46... Rg7+ {[%clk
0:00:20.3]} 47. Ke6 {[%clk 0:00:11.6]} 47... Re7+ {[%clk 0:00:20.9]} 48. Kxf5
{[%clk 0:00:11.6]} 48... Rf2+ {[%clk 0:00:22.2]} 49. Ke4 {[%clk 0:00:05.1]}
49... Bc3+ {[%clk 0:00:22.1]} 50. Kd5 {[%clk 0:00:05.6]} 0-1

[Event "*** Titled Tuesday Blitz"]
[Site "Chess.com"]
[Date "2018.01.02"]
[Round "10"]
[White "ChainsOfFantasia"]
[Black "Bryakin_Mikhail"]
[Result "0-1"]
[WhiteElo "2452"]
[BlackElo "2539"]
[TimeControl "180+2"]
[EndTime "15:13:49 PST"]
[Termination "Bryakin_Mikhail won by checkmate"]

1. d4 {[%clk 0:03:01.9]} 1... d5 {[%clk 0:03:00.6]} 2. c4 {[%clk 0:03:03.3]}
2... c6 {[%clk 0:03:02.1]} 3. Nf3 {[%clk 0:03:04.4]} 3... Nf6 {[%clk 0:03:02.9]}
4. Nc3 {[%clk 0:03:05.9]} 4... a6 {[%clk 0:03:04.3]} 5. c5 {[%clk 0:03:04.9]}
5... Nbd7 {[%clk 0:03:04.5]} 6. Bf4 {[%clk 0:03:01]} 6... Nh5 {[%clk 0:03:05.7]}
7. Bd2 {[%clk 0:03:02]} 7... g6 {[%clk 0:03:02.7]} 8. g3 {[%clk 0:03:02.2]} 8...
Bg7 {[%clk 0:03:04]} 9. Bg2 {[%clk 0:03:00.2]} 9... O-O {[%clk 0:03:05.1]} 10.
O-O {[%clk 0:03:01.1]} 10... e5 {[%clk 0:03:05.1]} 11. Nxe5 {[%clk 0:02:49.4]}
11... Nxe5 {[%clk 0:03:05.4]} 12. dxe5 {[%clk 0:02:50.9]} 12... Bxe5 {[%clk
0:03:07.3]} 13. Bh6 {[%clk 0:02:49.1]} 13... Ng7 {[%clk 0:03:07.3]} 14. e4
{[%clk 0:02:43]} 14... dxe4 {[%clk 0:02:58.3]} 15. Nxe4 {[%clk 0:02:36]} 15...
Bf5 {[%clk 0:02:45.2]} 16. Nd6 {[%clk 0:02:30.2]} 16... Bxd6 {[%clk 0:02:40.8]}
17. cxd6 {[%clk 0:02:28.4]} 17... Qd7 {[%clk 0:02:41.8]} 18. Re1 {[%clk
0:02:25.9]} 18... Be6 {[%clk 0:02:38.7]} 19. Be4 {[%clk 0:02:19.2]} 19... Rad8
{[%clk 0:02:34.4]} 20. Qd4 {[%clk 0:02:19]} 20... f6 {[%clk 0:02:31.7]} 21. Rad1
{[%clk 0:02:16.6]} 21... Rf7 {[%clk 0:02:31.7]} 22. Bc2 {[%clk 0:02:12.8]} 22...
Bd5 {[%clk 0:02:20]} 23. Bb3 {[%clk 0:01:34]} 23... Nf5 {[%clk 0:02:10.1]} 24.
Qf4 {[%clk 0:01:19.1]} 24... g5 {[%clk 0:01:54]} 25. Bxg5 {[%clk 0:01:16]} 25...
fxg5 {[%clk 0:01:55.9]} 26. Qxg5+ {[%clk 0:01:16.3]} 26... Rg7 {[%clk
0:01:57.5]} 27. Rxd5 {[%clk 0:01:08.7]} 27... cxd5 {[%clk 0:01:57.9]} 28. Bxd5+
{[%clk 0:01:09.8]} 28... Kh8 {[%clk 0:01:59.3]} 29. Qf6 {[%clk 0:01:07]} 29...
Qxd6 {[%clk 0:01:54.3]} 30. Qxf5 {[%clk 0:00:58.8]} 30... Re7 {[%clk 0:01:34.5]}
31. Rxe7 {[%clk 0:00:53.7]} 31... Qxe7 {[%clk 0:01:36.4]} 32. Bb3 {[%clk
0:00:50.6]} 32... Rf8 {[%clk 0:01:35]} 33. Qc2 {[%clk 0:00:49.9]} 33... Qe5
{[%clk 0:01:30.9]} 34. Kg2 {[%clk 0:00:48.3]} 34... Rd8 {[%clk 0:01:24.2]} 35.
h4 {[%clk 0:00:47.6]} 35... a5 {[%clk 0:01:21]} 36. a4 {[%clk 0:00:32.6]} 36...
Kg7 {[%clk 0:01:21.9]} 37. Qc4 {[%clk 0:00:30.8]} 37... Rf8 {[%clk 0:01:14.4]}
38. Qg4+ {[%clk 0:00:28.5]} 38... Kh8 {[%clk 0:01:15.3]} 39. Bc2 {[%clk
0:00:22.8]} 39... Qxb2 {[%clk 0:01:06]} 40. Qe4 {[%clk 0:00:23]} 40... Qg7
{[%clk 0:01:06.6]} 41. Qd5 {[%clk 0:00:21.4]} 41... Qf7 {[%clk 0:01:04.6]} 42.
Qe4 {[%clk 0:00:21.4]} 42... Qxf2+ {[%clk 0:01:03.2]} 43. Kh3 {[%clk 0:00:21.3]}
43... Qf1+ {[%clk 0:01:03.8]} 44. Kg4 {[%clk 0:00:21.3]} 44... Rg8+ {[%clk
0:01:04.2]} 45. Kh5 {[%clk 0:00:17.2]} 45... Qf7+ {[%clk 0:01:04.1]} 46. Kh6
{[%clk 0:00:18.5]} 46... Rg6+ {[%clk 0:00:59]} 47. Kh5 {[%clk 0:00:19.8]} 47...
Rxg3+ {[%clk 0:00:54.6]} 48. Kh6 {[%clk 0:00:20]} 48... Rg6+ {[%clk 0:00:55.4]}
49. Kh5 {[%clk 0:00:21.2]} 49... Re6+ {[%clk 0:00:46.7]} 50. Qg6 {[%clk
0:00:16.6]} 50... hxg6+ {[%clk 0:00:47.1]} 51. Kh6 {[%clk 0:00:17.6]} 51... Qf6
{[%clk 0:00:44.5]} 52. h5 {[%clk 0:00:15.6]} 52... gxh5+ {[%clk 0:00:42.2]} 53.
Kxh5 {[%clk 0:00:17.5]} 53... Re5+ {[%clk 0:00:42.3]} 54. Bf5 {[%clk 0:00:17.6]}
54... Rxf5+ {[%clk 0:00:41.5]} 55. Kg4 {[%clk 0:00:19]} 55... Qg6+ {[%clk
0:00:42.5]} 56. Kh4 {[%clk 0:00:19.9]} 56... Rh5# {[%clk 0:00:44.4]} 0-1